[Event "Titled Tuesday Blitz January 03 Late 2023"]
[White "Carnicelli, Valerio"]
[Black "Kaplan, Avi Harrison"]
[WhiteFideId "856185"]
[BlackFideId "30934559"]
[WhiteElo "2370"]
[BlackElo "2146"]
[Result "1/2-1/2"]
[Round "03"]
[TimeControl "180+2"]
[Date "2023.01.03"]
[WhiteClock "0:00:05"]
[BlackClock "0:00:06"]

1. b3 {[%clk 0:03:00]}  e5 {[%clk 0:02:58]} 2. Bb2 {[%clk 0:03:00]}  d6 {[%clk 0:02:58]} 3. c4 {[%clk 0:03:00]}  c5 {[%clk 0:02:58]} 4. g3 {[%clk 0:02:58]}  Nc6 {[%clk 0:02:58]} 5. Bg2 {[%clk 0:02:58]}  f5 {[%clk 0:02:57]} 6. e3 {[%clk 0:02:58]}  Nf6 {[%clk 0:02:57]} 7. Ne2 {[%clk 0:02:58]}  Be7 {[%clk 0:02:57]} 8. d4 {[%clk 0:02:57]}  cxd4 {[%clk 0:02:56]} 9. exd4 {[%clk 0:02:58]}  e4 {[%clk 0:02:56]} 10. O-O {[%clk 0:02:50]}  h5 {[%clk 0:02:56]} 11. Nf4 {[%clk 0:02:49]}  h4 {[%clk 0:02:55]} 12. Ng6 {[%clk 0:02:45]}  Rh6 {[%clk 0:02:53]} 13. Nxe7 {[%clk 0:02:33]}  Qxe7 {[%clk 0:02:54]} 14. Bc1 {[%clk 0:02:25]}  hxg3 {[%clk 0:02:30]} 15. Bxh6 {[%clk 0:02:20]}  Ng4 {[%clk 0:02:30]} 16. Bf4 {[%clk 0:02:09]}  gxf2+ {[%clk 0:02:25]} 17. Rxf2 {[%clk 0:02:01]}  g5 {[%clk 0:02:24]} 18. Bc1 {[%clk 0:01:57]}  Qh7 {[%clk 0:02:17]} 19. h3 {[%clk 0:01:49]}  Nxf2 {[%clk 0:02:13]} 20. Kxf2 {[%clk 0:01:50]}  Qh4+ {[%clk 0:02:09]} 21. Kg1 {[%clk 0:01:50]}  f4 {[%clk 0:02:07]} 22. Qe2 {[%clk 0:01:44]}  Bxh3 {[%clk 0:01:32]} 23. Qxe4+ {[%clk 0:01:32]}  Kd7 {[%clk 0:01:32]} 24. d5 {[%clk 0:01:09]}  Ne5 {[%clk 0:01:10]} 25. Nd2 {[%clk 0:00:42]}  Re8 {[%clk 0:01:04]} 26. Ba3 {[%clk 0:00:31]}  f3 {[%clk 0:00:27]} 27. Qxh4 {[%clk 0:00:28]}  gxh4 {[%clk 0:00:25]} 28. Bxh3+ {[%clk 0:00:28]}  Kc7 {[%clk 0:00:25]} 29. Rf1 {[%clk 0:00:14]}  Rg8+ {[%clk 0:00:21]} 30. Kh1 {[%clk 0:00:13]}  Rg3 {[%clk 0:00:20]} 31. Bf5 {[%clk 0:00:11]}  Rg5 {[%clk 0:00:14]} 32. Bxd6+ {[%clk 0:00:10]}  Kb6 {[%clk 0:00:10]} 33. Bxe5 {[%clk 0:00:10]}  Rxf5 {[%clk 0:00:10]} 34. Bd4+ {[%clk 0:00:11]}  Ka6 {[%clk 0:00:11]} 35. Rxf3 {[%clk 0:00:12]}  Rg5 {[%clk 0:00:11]} 36. Rh3 {[%clk 0:00:10]}  b5 {[%clk 0:00:09]} 37. Rxh4 {[%clk 0:00:10]}  b4 {[%clk 0:00:09]} 38. Rh6+ {[%clk 0:00:08]}  Ka5 {[%clk 0:00:09]} 39. Bf6 {[%clk 0:00:06]}  Rg8 {[%clk 0:00:06]} 40. Be7 {[%clk 0:00:06]}  a6 {[%clk 0:00:05]} 41. a3 {[%clk 0:00:05]}  bxa3 {[%clk 0:00:04]} 42. Bxa3 {[%clk 0:00:04]}  Rg1+ {[%clk 0:00:03]} 43. Kh2 {[%clk 0:00:04]}  Rg2+ {[%clk 0:00:04]} 44. Kh3 {[%clk 0:00:04]}  Rg3+ {[%clk 0:00:04]} 45. Kh4 {[%clk 0:00:04]}  Rg4+ {[%clk 0:00:05]} 46. Kh5 {[%clk 0:00:04]}  Rg5+ {[%clk 0:00:05]} 47. Kh4 {[%clk 0:00:04]}  Rg4+ {[%clk 0:00:06]} 48. Kxg4 {[%clk 0:00:05]} 1/2-1/2


[Site "https://www.chess.com"]

[Event "Titled Tuesday Blitz January 03 Late 2023"]
[White "Della Corte, Alessandro"]
[Black "Rosen, Eric"]
[WhiteFideId "813540"]
[BlackFideId "2032562"]
[WhiteElo "2160"]
[BlackElo "2349"]
[Result "0-1"]
[Round "03"]
[TimeControl "180+2"]
[Date "2023.01.03"]
[WhiteClock "0:01:56"]
[BlackClock "0:01:20"]

1. d4 {[%clk 0:03:00]}  d5 {[%clk 0:03:00]} 2. Nf3 {[%clk 0:03:00]}  Nf6 {[%clk 0:03:00]} 3. c4 {[%clk 0:03:00]}  e6 {[%clk 0:03:00]} 4. Nc3 {[%clk 0:03:00]}  a6 {[%clk 0:03:00]} 5. e3 {[%clk 0:02:59]}  b6 {[%clk 0:02:57]} 6. b3 {[%clk 0:02:59]}  Bb7 {[%clk 0:02:58]} 7. Bb2 {[%clk 0:02:59]}  Nbd7 {[%clk 0:02:56]} 8. Be2 {[%clk 0:02:59]}  Bd6 {[%clk 0:02:56]} 9. O-O {[%clk 0:02:57]}  O-O {[%clk 0:02:57]} 10. Qc2 {[%clk 0:02:56]}  Qe7 {[%clk 0:02:55]} 11. a3 {[%clk 0:02:54]}  Rac8 {[%clk 0:02:52]} 12. b4 {[%clk 0:02:53]}  c5 {[%clk 0:02:45]} 13. bxc5 {[%clk 0:02:52]}  bxc5 {[%clk 0:02:45]} 14. cxd5 {[%clk 0:02:48]}  cxd4 {[%clk 0:02:40]} 15. dxe6 {[%clk 0:02:23]}  dxc3 {[%clk 0:02:12]} 16. exd7 {[%clk 0:02:22]}  Nxd7 {[%clk 0:01:41]} 17. Bxc3 {[%clk 0:02:22]}  Bxf3 {[%clk 0:01:28]} 18. Bxf3 {[%clk 0:02:23]}  Be5 {[%clk 0:01:28]} 19. Bb4 {[%clk 0:02:07]}  Bxh2+ {[%clk 0:01:24]} 20. Kh1 {[%clk 0:02:07]}  Qh4 {[%clk 0:01:21]} 21. Qe4 {[%clk 0:01:56]}  Bf4+ {[%clk 0:01:19]} 22. Kg1 {[%clk 0:01:56]}  Qh2# {[%clk 0:01:20]} 0-1


[Site "https://www.chess.com"]

[Event "Titled Tuesday Blitz January 03 Late 2023"]
[White "Sargsyan, Anna M."]
[Black "Stachanczyk, Jacek"]
[WhiteFideId "13308130"]
[BlackFideId "1116657"]
[WhiteElo "2375"]
[BlackElo "2147"]
[Result "1/2-1/2"]
[Round "03"]
[TimeControl "180+2"]
[Date "2023.01.03"]
[WhiteClock "0:00:07"]
[BlackClock "0:00:30"]

1. d4 {[%clk 0:02:55]}  Nf6 {[%clk 0:02:58]} 2. c4 {[%clk 0:02:55]}  g6 {[%clk 0:02:58]} 3. g3 {[%clk 0:02:55]}  Bg7 {[%clk 0:02:58]} 4. Bg2 {[%clk 0:02:55]}  c6 {[%clk 0:02:58]} 5. Nc3 {[%clk 0:02:56]}  d5 {[%clk 0:02:58]} 6. cxd5 {[%clk 0:02:54]}  cxd5 {[%clk 0:02:58]} 7. Nf3 {[%clk 0:02:55]}  O-O {[%clk 0:02:58]} 8. Ne5 {[%clk 0:02:55]}  Nc6 {[%clk 0:02:57]} 9. Nxc6 {[%clk 0:02:55]}  bxc6 {[%clk 0:02:57]} 10. O-O {[%clk 0:02:56]}  Bf5 {[%clk 0:02:13]} 11. Bf4 {[%clk 0:02:51]}  Qa5 {[%clk 0:01:52]} 12. Rc1 {[%clk 0:02:50]}  Ne4 {[%clk 0:01:41]} 13. Na4 {[%clk 0:02:45]}  Rac8 {[%clk 0:01:19]} 14. b3 {[%clk 0:02:45]}  c5 {[%clk 0:01:09]} 15. dxc5 {[%clk 0:02:31]}  Nxc5 {[%clk 0:00:56]} 16. Qxd5 {[%clk 0:02:24]}  Rfd8 {[%clk 0:00:53]} 17. Qf3 {[%clk 0:01:54]}  Nxa4 {[%clk 0:00:49]} 18. Rxc8 {[%clk 0:01:46]}  Rxc8 {[%clk 0:00:50]} 19. bxa4 {[%clk 0:01:46]}  Qxa4 {[%clk 0:00:50]} 20. Qb7 {[%clk 0:01:42]}  Qxa2 {[%clk 0:00:45]} 21. Qxe7 {[%clk 0:01:41]}  Qe6 {[%clk 0:00:42]} 22. Qxa7 {[%clk 0:01:36]}  Qxe2 {[%clk 0:00:42]} 23. Bd5 {[%clk 0:01:31]}  Be6 {[%clk 0:00:39]} 24. Bb7 {[%clk 0:01:18]}  Re8 {[%clk 0:00:37]} 25. Bc6 {[%clk 0:01:02]}  Bh3 {[%clk 0:00:34]} 26. Bg2 {[%clk 0:00:55]}  Qxf1+ {[%clk 0:00:23]} 27. Bxf1 {[%clk 0:00:53]}  Re1 {[%clk 0:00:23]} 28. Qa6 {[%clk 0:00:32]}  Rxf1+ {[%clk 0:00:24]} 29. Qxf1 {[%clk 0:00:32]}  Bxf1 {[%clk 0:00:25]} 30. Kxf1 {[%clk 0:00:33]}  h6 {[%clk 0:00:25]} 31. Ke2 {[%clk 0:00:33]}  f5 {[%clk 0:00:25]} 32. Kd3 {[%clk 0:00:32]}  Kf7 {[%clk 0:00:26]} 33. Kc4 {[%clk 0:00:31]}  g5 {[%clk 0:00:25]} 34. Be3 {[%clk 0:00:26]}  Ke6 {[%clk 0:00:26]} 35. Bd4 {[%clk 0:00:22]}  Bf8 {[%clk 0:00:25]} 36. f3 {[%clk 0:00:19]}  h5 {[%clk 0:00:25]} 37. Be3 {[%clk 0:00:17]}  g4 {[%clk 0:00:26]} 38. fxg4 {[%clk 0:00:15]}  fxg4 {[%clk 0:00:26]} 39. Kd4 {[%clk 0:00:15]}  Kf5 {[%clk 0:00:27]} 40. Kd5 {[%clk 0:00:15]}  Bg7 {[%clk 0:00:28]} 41. Bf2 {[%clk 0:00:13]}  Bf6 {[%clk 0:00:28]} 42. Bg1 {[%clk 0:00:11]}  Bd8 {[%clk 0:00:29]} 43. Bf2 {[%clk 0:00:11]}  Be7 {[%clk 0:00:29]} 44. Bg1 {[%clk 0:00:11]}  Bd8 {[%clk 0:00:30]} 45. Bf2 {[%clk 0:00:11]}  Ba5 {[%clk 0:00:30]} 46. Bg1 {[%clk 0:00:07]}  Bd8 {[%clk 0:00:30]} 1/2-1/2


[Site "https://www.chess.com"]

[Event "Titled Tuesday Blitz January 03 Late 2023"]
[White "Seletsky, Grigory"]
[Black "Yaran, Siar"]
[WhiteFideId "14112191"]
[BlackFideId "6323006"]
[WhiteElo "2259"]
[BlackElo "2288"]
[Result "0-1"]
[Round "03"]
[TimeControl "180+2"]
[Date "2023.01.03"]
[WhiteClock "0:00:11"]
[BlackClock "0:00:12"]

1. e4 {[%clk 0:02:59]}  e5 {[%clk 0:03:00]} 2. Nf3 {[%clk 0:02:58]}  Nc6 {[%clk 0:03:00]} 3. Bb5 {[%clk 0:02:58]}  a6 {[%clk 0:03:01]} 4. Bxc6 {[%clk 0:02:57]}  dxc6 {[%clk 0:03:02]} 5. O-O {[%clk 0:02:53]}  f6 {[%clk 0:03:02]} 6. d4 {[%clk 0:02:53]}  exd4 {[%clk 0:03:02]} 7. Nxd4 {[%clk 0:02:52]}  c5 {[%clk 0:03:03]} 8. Nb3 {[%clk 0:02:50]}  Qxd1 {[%clk 0:03:03]} 9. Rxd1 {[%clk 0:02:49]}  Be6 {[%clk 0:03:04]} 10. Nc3 {[%clk 0:02:49]}  Bd6 {[%clk 0:02:46]} 11. Be3 {[%clk 0:02:47]}  c4 {[%clk 0:02:25]} 12. Nc5 {[%clk 0:02:44]}  Bc8 {[%clk 0:01:59]} 13. Nd5 {[%clk 0:02:38]}  Ne7 {[%clk 0:01:57]} 14. Nxe7 {[%clk 0:02:29]}  Kxe7 {[%clk 0:01:55]} 15. Na4 {[%clk 0:02:27]}  Bd7 {[%clk 0:01:25]} 16. Nc3 {[%clk 0:02:23]}  Bc6 {[%clk 0:01:24]} 17. Nd5+ {[%clk 0:02:22]}  Kf7 {[%clk 0:01:24]} 18. f3 {[%clk 0:02:19]}  Rad8 {[%clk 0:01:22]} 19. c3 {[%clk 0:02:18]}  Rhe8 {[%clk 0:01:21]} 20. g4 {[%clk 0:02:05]}  Bxd5 {[%clk 0:01:13]} 21. Rxd5 {[%clk 0:02:03]}  Bxh2+ {[%clk 0:01:12]} 22. Kf2 {[%clk 0:01:34]}  Rxd5 {[%clk 0:01:11]} 23. exd5 {[%clk 0:01:33]}  Bg3+ {[%clk 0:01:11]} 24. Kxg3 {[%clk 0:01:32]}  Rxe3 {[%clk 0:01:11]} 25. Rd1 {[%clk 0:01:32]}  Re2 {[%clk 0:00:58]} 26. Rd4 {[%clk 0:01:18]}  Ke7 {[%clk 0:00:35]} 27. Rxc4 {[%clk 0:01:17]}  Kd6 {[%clk 0:00:35]} 28. Rb4 {[%clk 0:01:13]}  b5 {[%clk 0:00:24]} 29. c4 {[%clk 0:01:10]}  Kc5 {[%clk 0:00:21]} 30. a3 {[%clk 0:01:09]}  bxc4 {[%clk 0:00:18]} 31. Rb7 {[%clk 0:01:09]}  Kd6 {[%clk 0:00:16]} 32. Kf4 {[%clk 0:01:00]}  g6 {[%clk 0:00:17]} 33. a4 {[%clk 0:00:50]}  h5 {[%clk 0:00:15]} 34. gxh5 {[%clk 0:00:48]}  gxh5 {[%clk 0:00:16]} 35. a5 {[%clk 0:00:47]}  h4 {[%clk 0:00:15]} 36. Kg4 {[%clk 0:00:46]}  Rf2 {[%clk 0:00:16]} 37. Ra7 {[%clk 0:00:39]}  f5+ {[%clk 0:00:16]} 38. Kf4 {[%clk 0:00:36]}  h3 {[%clk 0:00:14]} 39. Kg3 {[%clk 0:00:36]}  h2 {[%clk 0:00:15]} 40. Rxa6+ {[%clk 0:00:33]}  Kxd5 {[%clk 0:00:15]} 41. Rh6 {[%clk 0:00:34]}  Rxb2 {[%clk 0:00:15]} 42. a6 {[%clk 0:00:28]}  Ra2 {[%clk 0:00:16]} 43. Kf4 {[%clk 0:00:27]}  Kd4 {[%clk 0:00:14]} 44. a7 {[%clk 0:00:20]}  Rxa7 {[%clk 0:00:12]} 45. Rxh2 {[%clk 0:00:18]}  c3 {[%clk 0:00:12]} 46. Kxf5 {[%clk 0:00:18]}  Kd3 {[%clk 0:00:12]} 47. Kf4 {[%clk 0:00:15]}  c2 {[%clk 0:00:12]} 48. Rh1 {[%clk 0:00:15]}  Rb7 {[%clk 0:00:11]} 49. Re1 {[%clk 0:00:11]}  Rb1 {[%clk 0:00:11]} 50. Re3+ {[%clk 0:00:11]}  Kd2 {[%clk 0:00:12]} 0-1


[Site "https://www.chess.com"]

[Event "Titled Tuesday Blitz January 03 Late 2023"]
[White "Denishev, Marat"]
[Black "Olenik Campa, Rudi"]
[WhiteFideId "24131563"]
[BlackFideId "14633264"]
[WhiteElo "2255"]
[BlackElo "2356"]
[Result "1/2-1/2"]
[Round "03"]
[TimeControl "180+2"]
[Date "2023.01.03"]
[WhiteClock "0:00:07"]
[BlackClock "0:00:14"]

1. d4 {[%clk 0:02:54]}  Nf6 {[%clk 0:02:59]} 2. Nf3 {[%clk 0:02:53]}  d5 {[%clk 0:02:59]} 3. Bf4 {[%clk 0:02:53]}  c5 {[%clk 0:02:59]} 4. e3 {[%clk 0:02:53]}  Nc6 {[%clk 0:02:59]} 5. Nc3 {[%clk 0:02:49]}  a6 {[%clk 0:02:56]} 6. dxc5 {[%clk 0:02:49]}  Qa5 {[%clk 0:02:51]} 7. Bd3 {[%clk 0:02:39]}  e6 {[%clk 0:02:48]} 8. Bd6 {[%clk 0:02:36]}  Bxd6 {[%clk 0:02:46]} 9. cxd6 {[%clk 0:02:37]}  Qb4 {[%clk 0:02:44]} 10. O-O {[%clk 0:02:32]}  O-O {[%clk 0:02:43]} 11. Rb1 {[%clk 0:02:18]}  Qxd6 {[%clk 0:02:39]} 12. e4 {[%clk 0:02:15]}  d4 {[%clk 0:02:39]} 13. Ne2 {[%clk 0:02:12]}  e5 {[%clk 0:02:39]} 14. Ng3 {[%clk 0:02:05]}  Bg4 {[%clk 0:02:38]} 15. h3 {[%clk 0:01:58]}  Be6 {[%clk 0:02:38]} 16. Nh4 {[%clk 0:01:39]}  g6 {[%clk 0:02:34]} 17. Qd2 {[%clk 0:01:34]}  Kg7 {[%clk 0:02:33]} 18. Qg5 {[%clk 0:01:31]}  Ne7 {[%clk 0:02:25]} 19. f4 {[%clk 0:00:40]}  h6 {[%clk 0:02:25]} 20. fxe5 {[%clk 0:00:19]}  hxg5 {[%clk 0:02:24]} 21. exd6 {[%clk 0:00:20]}  gxh4 {[%clk 0:02:25]} 22. dxe7 {[%clk 0:00:20]}  Rfe8 {[%clk 0:02:25]} 23. Ne2 {[%clk 0:00:20]}  Rxe7 {[%clk 0:02:25]} 24. Nxd4 {[%clk 0:00:21]}  Bxa2 {[%clk 0:02:22]} 25. Rbe1 {[%clk 0:00:18]}  Be6 {[%clk 0:02:20]} 26. e5 {[%clk 0:00:18]}  Nd5 {[%clk 0:02:20]} 27. Be4 {[%clk 0:00:17]}  Rc8 {[%clk 0:02:18]} 28. c3 {[%clk 0:00:17]}  Nb6 {[%clk 0:02:15]} 29. Nf3 {[%clk 0:00:17]}  Nc4 {[%clk 0:02:13]} 30. Rf2 {[%clk 0:00:17]}  Rc5 {[%clk 0:02:06]} 31. Bd3 {[%clk 0:00:16]}  Bd5 {[%clk 0:01:53]} 32. Bxc4 {[%clk 0:00:15]}  Bxc4 {[%clk 0:01:54]} 33. Nxh4 {[%clk 0:00:15]}  Rcxe5 {[%clk 0:01:53]} 34. Rxe5 {[%clk 0:00:16]}  Rxe5 {[%clk 0:01:54]} 35. Nf3 {[%clk 0:00:17]}  Re7 {[%clk 0:01:50]} 36. Nd4 {[%clk 0:00:17]}  Bd5 {[%clk 0:01:49]} 37. Re2 {[%clk 0:00:16]}  Rxe2 {[%clk 0:01:47]} 38. Nxe2 {[%clk 0:00:16]}  Kf6 {[%clk 0:01:47]} 39. Kf2 {[%clk 0:00:17]}  Ke5 {[%clk 0:01:47]} 40. g3 {[%clk 0:00:17]}  Be6 {[%clk 0:01:47]} 41. Nf4 {[%clk 0:00:11]}  Bd7 {[%clk 0:01:46]} 42. h4 {[%clk 0:00:08]}  b6 {[%clk 0:01:45]} 43. Ke3 {[%clk 0:00:08]}  Bf5 {[%clk 0:01:45]} 44. Ne2 {[%clk 0:00:08]}  b5 {[%clk 0:01:40]} 45. Nd4 {[%clk 0:00:09]}  Bd7 {[%clk 0:01:40]} 46. b4 {[%clk 0:00:07]}  Kd5 {[%clk 0:01:36]} 47. Kd3 {[%clk 0:00:06]}  Bh3 {[%clk 0:01:36]} 48. Nb3 {[%clk 0:00:06]}  Bf5+ {[%clk 0:01:36]} 49. Kd2 {[%clk 0:00:06]}  Kc4 {[%clk 0:01:35]} 50. Na5+ {[%clk 0:00:04]}  Kd5 {[%clk 0:01:34]} 51. Ke3 {[%clk 0:00:05]}  Bc8 {[%clk 0:01:32]} 52. Kf4 {[%clk 0:00:05]}  f6 {[%clk 0:01:31]} 53. g4 {[%clk 0:00:05]}  Be6 {[%clk 0:00:39]} 54. h5 {[%clk 0:00:05]}  g5+ {[%clk 0:00:38]} 55. Kg3 {[%clk 0:00:06]}  f5 {[%clk 0:00:34]} 56. gxf5 {[%clk 0:00:05]}  Bxf5 {[%clk 0:00:35]} 57. h6 {[%clk 0:00:05]}  Ke4 {[%clk 0:00:32]} 58. Nc6 {[%clk 0:00:05]}  Kd3 {[%clk 0:00:29]} 59. Nb8 {[%clk 0:00:03]}  Kxc3 {[%clk 0:00:27]} 60. Nxa6 {[%clk 0:00:03]}  Kc4 {[%clk 0:00:27]} 61. Kf3 {[%clk 0:00:04]}  Kd4 {[%clk 0:00:21]} 62. Kg3 {[%clk 0:00:04]}  Kc4 {[%clk 0:00:21]} 63. Kf3 {[%clk 0:00:04]}  Kd4 {[%clk 0:00:19]} 64. Nc7 {[%clk 0:00:04]}  Kc4 {[%clk 0:00:18]} 65. Ne8 {[%clk 0:00:05]}  Kxb4 {[%clk 0:00:16]} 66. Nd6 {[%clk 0:00:05]}  Bh7 {[%clk 0:00:13]} 67. Kg4 {[%clk 0:00:06]}  Kc5 {[%clk 0:00:13]} 68. Nxb5 {[%clk 0:00:04]}  Kxb5 {[%clk 0:00:13]} 69. Kxg5 {[%clk 0:00:05]}  Kc5 {[%clk 0:00:14]} 70. Kf6 {[%clk 0:00:06]}  Kd6 {[%clk 0:00:14]} 71. Kg7 {[%clk 0:00:06]}  Bb1 {[%clk 0:00:14]} 72. h7 {[%clk 0:00:07]}  Bxh7 {[%clk 0:00:14]} 1/2-1/2


[Site "https://www.chess.com"]

[Event "Titled Tuesday Blitz January 03 Late 2023"]
[White "Rodriguez Fontecha, Marcos"]
[Black "Ortega Ruiz, Jose Miguel"]
[WhiteFideId "2256576"]
[BlackFideId "2209713"]
[WhiteElo "2309"]
[BlackElo "2351"]
[Result "0-1"]
[Round "03"]
[TimeControl "180+2"]
[Date "2023.01.03"]
[WhiteClock "0:00:02"]
[BlackClock "0:00:20"]

1. Nf3 {[%clk 0:03:00]}  g6 {[%clk 0:03:00]} 2. h4 {[%clk 0:03:00]}  Nf6 {[%clk 0:02:59]} 3. d4 {[%clk 0:02:59]}  d5 {[%clk 0:02:59]} 4. Nc3 {[%clk 0:02:59]}  Bg4 {[%clk 0:02:56]} 5. Bf4 {[%clk 0:02:59]}  Bxf3 {[%clk 0:02:55]} 6. exf3 {[%clk 0:02:56]}  h5 {[%clk 0:02:51]} 7. Qd2 {[%clk 0:02:56]}  c6 {[%clk 0:02:49]} 8. Bd3 {[%clk 0:02:55]}  Nbd7 {[%clk 0:02:49]} 9. O-O {[%clk 0:02:48]}  Bg7 {[%clk 0:02:44]} 10. Rfe1 {[%clk 0:02:48]}  O-O {[%clk 0:02:44]} 11. Bh6 {[%clk 0:02:48]}  e6 {[%clk 0:02:41]} 12. Ne2 {[%clk 0:02:44]}  Ne8 {[%clk 0:02:38]} 13. Bxg7 {[%clk 0:02:40]}  Kxg7 {[%clk 0:02:39]} 14. Qf4 {[%clk 0:02:38]}  Qf6 {[%clk 0:02:39]} 15. g3 {[%clk 0:02:35]}  c5 {[%clk 0:02:34]} 16. Qxf6+ {[%clk 0:02:13]}  Nexf6 {[%clk 0:02:35]} 17. c3 {[%clk 0:02:10]}  Rfc8 {[%clk 0:02:32]} 18. f4 {[%clk 0:02:08]}  a6 {[%clk 0:02:32]} 19. f3 {[%clk 0:02:04]}  b5 {[%clk 0:02:32]} 20. a3 {[%clk 0:02:01]}  Rab8 {[%clk 0:02:31]} 21. Kf2 {[%clk 0:01:59]}  a5 {[%clk 0:02:31]} 22. Ke3 {[%clk 0:01:54]}  b4 {[%clk 0:02:20]} 23. axb4 {[%clk 0:01:54]}  axb4 {[%clk 0:02:20]} 24. Reb1 {[%clk 0:01:46]}  Ra8 {[%clk 0:02:14]} 25. Bb5 {[%clk 0:01:33]}  Rxa1 {[%clk 0:02:11]} 26. Rxa1 {[%clk 0:01:32]}  bxc3 {[%clk 0:02:09]} 27. bxc3 {[%clk 0:01:26]}  cxd4+ {[%clk 0:02:09]} 28. Kxd4 {[%clk 0:01:18]}  Nc5 {[%clk 0:01:51]} 29. Nc1 {[%clk 0:01:14]}  Nb7 {[%clk 0:01:51]} 30. Ra6 {[%clk 0:01:11]}  Rd8 {[%clk 0:01:44]} 31. Ra7 {[%clk 0:01:08]}  Nd6 {[%clk 0:01:45]} 32. Bd3 {[%clk 0:01:07]}  Nfe8 {[%clk 0:01:21]} 33. Nb3 {[%clk 0:01:04]}  Nf5+ {[%clk 0:01:11]} 34. Bxf5 {[%clk 0:01:03]}  gxf5 {[%clk 0:01:12]} 35. Nc5 {[%clk 0:01:03]}  Kf6 {[%clk 0:01:13]} 36. Nd7+ {[%clk 0:01:02]}  Kg7 {[%clk 0:01:12]} 37. Ne5 {[%clk 0:01:01]}  Nd6 {[%clk 0:01:12]} 38. Kc5 {[%clk 0:00:55]}  Kg8 {[%clk 0:01:05]} 39. Kc6 {[%clk 0:00:52]}  f6 {[%clk 0:01:00]} 40. Nd7 {[%clk 0:00:34]}  Ne8 {[%clk 0:00:56]} 41. Nc5 {[%clk 0:00:28]}  Rc8+ {[%clk 0:00:53]} 42. Kb6 {[%clk 0:00:26]}  Rb8+ {[%clk 0:00:52]} 43. Kc6 {[%clk 0:00:21]}  Rc8+ {[%clk 0:00:52]} 44. Kb6 {[%clk 0:00:20]}  Nd6 {[%clk 0:00:45]} 45. Nxe6 {[%clk 0:00:18]}  Rxc3 {[%clk 0:00:45]} 46. Rg7+ {[%clk 0:00:17]}  Kh8 {[%clk 0:00:45]} 47. Rd7 {[%clk 0:00:18]}  Nc4+ {[%clk 0:00:44]} 48. Kb5 {[%clk 0:00:14]}  Rxf3 {[%clk 0:00:43]} 49. Rxd5 {[%clk 0:00:13]}  Ne3 {[%clk 0:00:40]} 50. Rd7 {[%clk 0:00:12]}  Rxg3 {[%clk 0:00:39]} 51. Nd8 {[%clk 0:00:10]}  Ng2 {[%clk 0:00:36]} 52. Nf7+ {[%clk 0:00:10]}  Kg8 {[%clk 0:00:36]} 53. Nh6+ {[%clk 0:00:11]}  Kf8 {[%clk 0:00:37]} 54. Nxf5 {[%clk 0:00:12]}  Rb3+ {[%clk 0:00:37]} 55. Kc4 {[%clk 0:00:11]}  Ra3 {[%clk 0:00:36]} 56. Kd5 {[%clk 0:00:11]}  Nxf4+ {[%clk 0:00:32]} 57. Ke4 {[%clk 0:00:11]}  Ne6 {[%clk 0:00:32]} 58. Re7 {[%clk 0:00:09]}  Ra4+ {[%clk 0:00:31]} 59. Ke3 {[%clk 0:00:09]}  Nd4 {[%clk 0:00:23]} 60. Nxd4 {[%clk 0:00:02]}  Kxe7 {[%clk 0:00:22]} 61. Nf5+ {[%clk 0:00:03]}  Ke6 {[%clk 0:00:21]} 62. Ng7+ {[%clk 0:00:03]}  Ke5 {[%clk 0:00:21]} 63. Nxh5 {[%clk 0:00:03]}  Rxh4 {[%clk 0:00:22]} 64. Ng7 {[%clk 0:00:04]}  Rh8 {[%clk 0:00:20]} 65. Kf3 {[%clk 0:00:03]}  f5 {[%clk 0:00:20]} 66. Kg3 {[%clk 0:00:02]}  Kf6 {[%clk 0:00:20]} 0-1


[Site "https://www.chess.com"]

[Event "Titled Tuesday Blitz January 03 Late 2023"]
[White "Brilej, Jaka"]
[Black "Sos Andreu, Eric"]
[WhiteFideId "14618818"]
[BlackFideId "22247017"]
[WhiteElo "2321"]
[BlackElo "2352"]
[Result "0-1"]
[Round "03"]
[TimeControl "180+2"]
[Date "2023.01.03"]
[WhiteClock "0:00:13"]
[BlackClock "0:00:06"]

1. d4 {[%clk 0:03:00]}  Nf6 {[%clk 0:02:59]} 2. c4 {[%clk 0:02:59]}  g6 {[%clk 0:03:00]} 3. Nc3 {[%clk 0:02:59]}  Bg7 {[%clk 0:03:00]} 4. Nf3 {[%clk 0:02:59]}  O-O {[%clk 0:03:00]} 5. Bg5 {[%clk 0:03:00]}  c5 {[%clk 0:02:59]} 6. d5 {[%clk 0:02:58]}  d6 {[%clk 0:02:54]} 7. h3 {[%clk 0:02:43]}  a6 {[%clk 0:02:53]} 8. e4 {[%clk 0:02:41]}  b5 {[%clk 0:02:51]} 9. cxb5 {[%clk 0:02:38]}  axb5 {[%clk 0:02:51]} 10. Bxb5 {[%clk 0:02:27]}  Nxe4 {[%clk 0:02:50]} 11. Nxe4 {[%clk 0:02:06]}  Qa5+ {[%clk 0:02:44]} 12. Nc3 {[%clk 0:01:58]}  Bxc3+ {[%clk 0:02:44]} 13. bxc3 {[%clk 0:01:59]}  Qxb5 {[%clk 0:02:44]} 14. Qe2 {[%clk 0:01:58]}  Qa4 {[%clk 0:02:31]} 15. Nd2 {[%clk 0:01:52]}  Re8 {[%clk 0:02:22]} 16. O-O {[%clk 0:01:50]}  Nd7 {[%clk 0:02:17]} 17. c4 {[%clk 0:01:40]}  Ba6 {[%clk 0:02:11]} 18. Rfe1 {[%clk 0:01:33]}  Ne5 {[%clk 0:02:09]} 19. Rac1 {[%clk 0:01:25]}  Rab8 {[%clk 0:02:03]} 20. f4 {[%clk 0:01:24]}  Nd7 {[%clk 0:02:02]} 21. Bxe7 {[%clk 0:01:19]}  Nb6 {[%clk 0:01:56]} 22. Qd3 {[%clk 0:01:13]}  Qd7 {[%clk 0:01:40]} 23. Bf6 {[%clk 0:01:06]}  h5 {[%clk 0:01:19]} 24. Ba1 {[%clk 0:01:05]}  Qf5 {[%clk 0:01:10]} 25. Ne4 {[%clk 0:00:51]}  Nd7 {[%clk 0:01:09]} 26. Qc3 {[%clk 0:00:47]}  f6 {[%clk 0:00:59]} 27. Nxd6 {[%clk 0:00:47]}  Rxe1+ {[%clk 0:00:58]} 28. Rxe1 {[%clk 0:00:47]}  Qxf4 {[%clk 0:00:58]} 29. Ne4 {[%clk 0:00:39]}  Rb4 {[%clk 0:00:48]} 30. Nxf6+ {[%clk 0:00:31]}  Nxf6 {[%clk 0:00:48]} 31. Qxf6 {[%clk 0:00:32]}  Qxf6 {[%clk 0:00:48]} 32. Bxf6 {[%clk 0:00:33]}  Rxc4 {[%clk 0:00:45]} 33. d6 {[%clk 0:00:33]}  Bb5 {[%clk 0:00:40]} 34. Re7 {[%clk 0:00:30]}  Rc1+ {[%clk 0:00:37]} 35. Kh2 {[%clk 0:00:29]}  Rd1 {[%clk 0:00:36]} 36. Be5 {[%clk 0:00:26]}  c4 {[%clk 0:00:22]} 37. Rg7+ {[%clk 0:00:25]}  Kf8 {[%clk 0:00:22]} 38. Rxg6 {[%clk 0:00:25]}  Kf7 {[%clk 0:00:22]} 39. Rg5 {[%clk 0:00:20]}  Rd5 {[%clk 0:00:19]} 40. h4 {[%clk 0:00:14]}  Ke6 {[%clk 0:00:19]} 41. Bf4 {[%clk 0:00:14]}  Rxg5 {[%clk 0:00:17]} 42. hxg5 {[%clk 0:00:14]}  Be8 {[%clk 0:00:14]} 43. Kg3 {[%clk 0:00:15]}  c3 {[%clk 0:00:14]} 44. Kh4 {[%clk 0:00:15]}  c2 {[%clk 0:00:11]} 45. g4 {[%clk 0:00:15]}  hxg4 {[%clk 0:00:09]} 46. Kxg4 {[%clk 0:00:16]}  Bg6 {[%clk 0:00:07]} 47. Kf3 {[%clk 0:00:15]}  Kd7 {[%clk 0:00:06]} 48. Ke3 {[%clk 0:00:16]}  c1=Q+ {[%clk 0:00:06]} 49. Kf3 {[%clk 0:00:13]}  Qc3+ {[%clk 0:00:05]} 50. Kg4 {[%clk 0:00:13]}  Ke6 {[%clk 0:00:05]} 51. d7 {[%clk 0:00:13]}  Bf5+ {[%clk 0:00:06]} 52. Kh5 {[%clk 0:00:13]}  Qh3# {[%clk 0:00:06]} 0-1


[Site "https://www.chess.com"]